bitfinex/quotes_ETHUSD_20251119
["timestamp","ask_amount","ask_price","bid_price","bid_amount"]
[1763511775281,0.002,3100.3,3099.6,0.0975]
[1763511775793,0.4575,3100.2,3099.2,0.0975]
[1763511777011,0.002,3100.3,3099.2,0.3492]
[1763511777209,0.002,3100.3,3099.5,0.90699264]
[1763511777415,0.002,3100.3,3099.6,0.72276957]
[1763511778511,0.4595,3100.3,3099.5,0.90699264]
[1763511778842,0.4595,3100.3,3099.3,0.90699264]
[1763511779276,0.002,3100.3,3099.8,0.90699264]
[1763511780033,0.4595,3100.3,3099.8,0.90699264]
[1763511780238,0.1802,3099.9,3099.3,0.90699264]
[1763511780458,0.4595,3100.3,3099.3,0.90699264]
[1763511780459,0.4595,3100.3,3099.3,1.62577322]
[1763511780627,0.4595,3100.3,3099.3,1.65803857]
[1763511780957,0.4595,3100.3,3098.1,0.0568]
[1763511780958,0.646,3099.4,3098.2,6.18331319]
[1763511781120,0.4575,3099.3,3098.0,0.001]
[1763511782328,0.4575,3099.3,3098.1,0.0568]
[1763511782656,0.4575,3099.3,3098.1,0.62411132]
[1763511782820,0.4575,3099.3,3098.1,0.0568]
[1763511783019,0.4575,3099.3,3098.1,0.08907784]
[1763511783447,0.4575,3099.3,3098.2,0.405504]
[1763511783845,0.4575,3099.3,3098.0,0.90799264]
[1763511784257,0.1377,3099.4,3098.0,0.001]
[1763511784433,0.1377,3099.4,3098.1,0.1858]
[1763511784634,0.1377,3099.4,3098.1,0.96492847]
[1763511784882,0.1802,3100.0,3098.9,6.18331319]
[1763511785753,0.1802,3100.5,3099.1,0.405504]
[1763511785934,0.1802,3100.5,3099.5,0.90699264]
[1763511786120,0.1802,3100.5,3099.5,0.9392559]
[1763511786321,0.1802,3100.5,3099.6,0.71225691]
[1763511786745,0.4842,3100.3,3099.6,0.71225691]
[1763511787368,0.4842,3100.3,3099.0,1.31249664]
[1763511787724,0.4842,3100.3,3099.2,0.405504]
[1763511788040,0.4842,3100.3,3099.5,0.90699264]
[1763511788041,0.002,3100.3,3099.5,0.90699264]
[1763511788464,0.002,3100.3,3099.6,0.03226222]
[1763511789438,0.002,3100.3,3099.5,0.90699264]
[1763511789638,0.002,3100.3,3099.6,0.70903058]
[1763511790658,0.4822,3100.2,3099.1,0.866504]
[1763511790956,0.002,3100.3,3099.5,1.31249664]
[1763511791726,0.002,3100.3,3100.2,0.1852]
[1763511791946,0.002,3100.7,3100.2,0.1852]
[1763511792359,0.002,3101.0,3100.5,0.90699264]
[1763511792564,0.002,3101.0,3100.6,0.70903058]
[1763511792865,0.002,3101.0,3100.6,1.17003058]
[1763511793061,0.002,3101.0,3100.7,0.866504]
[1763511793359,0.6624,3102.0,3100.7,0.866504]
[1763511793548,0.6624,3102.0,3100.7,0.405504]
[1763511793862,0.4822,3101.9,3100.7,0.24825272]
[1763511794163,0.4822,3101.9,3100.3,0.405504]
[1763511794528,0.4822,3101.9,3100.0,1.36799264]
[1763511794858,0.4822,3101.9,3099.5,6.18331319]
[1763511795040,0.4822,3101.9,3099.6,0.90699264]
[1763511795246,0.90699264,3101.8,3099.7,0.70903058]
[1763511795461,0.90699264,3101.8,3099.8,0.405504]
[1763511795661,0.4822,3101.7,3099.8,0.866504]
[1763511796259,0.4822,3101.7,3100.1,0.90699264]
[1763511796462,0.4822,3101.7,3100.2,0.1872]
[1763511797034,0.4822,3101.7,3100.1,0.90699264]
[1763511797363,0.4822,3101.7,3100.1,1.84932322]
[1763511797664,0.4822,3101.7,3100.1,2.31032322]
[1763511797966,0.4822,3101.7,3100.1,1.84932322]
[1763511800137,0.90699264,3101.8,3100.1,1.66212322]
[1763511800332,0.4822,3101.6,3100.1,1.66212322]
[1763511800634,0.6734,3100.2,3099.5,6.18331319]
[1763511801168,0.6734,3100.2,3099.6,0.90699264]
[1763511801473,0.6734,3100.2,3099.4,0.001]
[1763511801846,0.1842,3100.2,3099.4,0.001]
[1763511802976,0.6393,3100.2,3099.4,0.001]
[1763511803487,0.4551,3100.1,3099.4,0.001]
[1763511806885,0.4551,3101.1,3100.1,0.90699264]
[1763511807053,0.4551,3101.1,3100.0,0.4827]
[1763511807553,0.4551,3101.1,3100.1,0.1822]
[1763511808084,0.4551,3101.1,3099.8,0.6331]
[1763511809090,0.4551,3101.1,3099.8,0.1822]
[1763511809662,0.4551,3101.1,3099.8,0.6331]
[1763511809857,0.4551,3101.1,3099.9,0.0322591]
[1763511810165,0.4551,3101.1,3099.6,1.31249664]
[1763511810360,0.4551,3101.1,3099.7,0.74958098]
[1763511810787,0.4551,3101.1,3099.4,0.001]
[1763511810984,0.4551,3101.1,3099.4,0.406504]
[1763511811457,0.4551,3101.1,3099.4,0.001]
[1763511812394,0.405504,3101.0,3099.4,0.001]
[1763511812593,0.90699264,3100.9,3099.4,0.001]
[1763511812898,0.90699264,3100.7,3099.4,0.001]
[1763511813094,1.1192208,3100.8,3099.4,0.001]
[1763511813305,0.4551,3100.7,3099.4,0.001]
[1763511813600,0.6456,3099.5,3099.4,0.001]
[1763511814871,0.4551,3099.9,3099.4,0.001]
[1763511817670,0.4583,3099.5,3099.4,0.001]
[1763511818075,0.9328,3099.5,3099.4,0.001]
[1763511818733,0.9328,3099.5,3099.0,0.001]
[1763511818734,4.913294,3099.5,3099.0,0.001]
[1763511818871,0.1419,3099.1,3099.0,0.001]
[1763511819376,0.6164,3099.1,3099.0,0.001]
[1763511819572,0.4745,3099.6,3099.0,0.001]
[1763511819772,0.4583,3099.1,3099.0,0.001]
[1763511820173,0.9328,3099.1,3099.0,0.001]
[1763511820575,0.4745,3099.5,3099.0,0.001]
[1763511820775,0.4745,3099.9,3099.1,0.1979]
[1763511822292,0.1807,3100.0,3099.1,0.1979]
[1763511822504,0.1807,3100.0,3099.1,0.674]
[1763511822685,0.4745,3100.3,3099.1,0.674]
[1763511822886,0.4745,3100.3,3099.2,0.4761]
[1763511823412,0.1908,3100.6,3099.4,0.90699264]
[1763511823580,0.1908,3100.6,3099.5,1.22890752]
[1763511824125,0.1908,3100.6,3099.6,0.4761]
[1763511824325,0.002,3101.0,3099.6,0.50836222]
[1763511824616,0.4765,3101.0,3099.6,0.4761]
[1763511826024,0.4765,3101.0,3099.6,0.405504]
[1763511826190,0.4765,3101.0,3099.5,0.75280752]
[1763511826394,0.4765,3101.0,3099.0,0.4771]
[1763511826619,0.4765,3101.0,3099.1,0.674]
[1763511827321,0.4765,3101.0,3099.2,0.4761]
[1763511827990,0.4765,3101.0,3099.3,0.405504]
[1763511828204,0.002,3101.0,3100.9,0.6446]
[1763511828489,0.002,3101.7,3100.6,1.08919264]
[1763511828791,0.1908,3100.7,3100.6,0.61833132]
[1763511828986,0.1908,3100.7,3100.0,0.6583]
[1763511828987,0.4765,3101.4,3100.0,0.6583]
[1763511829190,0.4765,3101.4,3100.0,0.1822]
[1763511829436,0.002,3101.4,3100.2,0.405504]
[1763511829647,0.002,3101.4,3100.6,1.31249664]
[1763511829803,0.002,3101.4,3100.6,0.405504]
[1763511830124,0.002,3101.4,3100.4,0.405504]
[1763511830622,0.002,3101.4,3100.3,0.4761]
[1763511832523,0.002,3101.4,3100.4,0.405504]
[1763511832727,0.002,3101.4,3101.3,0.1858]
[1763511832933,0.002,3101.4,3100.6,1.31249664]
[1763511833232,0.002,3101.4,3100.8,0.405504]
[1763511834434,0.4765,3101.7,3100.8,0.405504]
[1763511834435,0.002,3101.7,3101.3,0.6482]
[1763511834834,0.002,3101.7,3101.3,1.1243]
[1763511835360,0.002,3101.4,3101.3,1.1243]
[1763511835537,0.002,3101.4,3101.3,1.25683326]
[1763511835733,0.002,3101.7,3101.3,0.20312926]
[1763511835941,0.002,3101.7,3100.9,0.1858]
[1763511836231,0.002,3101.7,3101.0,0.405504]
[1763511836740,0.002,3101.7,3100.9,0.6619]
[1763511836918,0.002,3101.7,3101.0,0.4761]
[1763511837307,0.002,3101.7,3101.1,0.405504]
[1763511837832,0.002,3101.7,3101.1,0.881604]
[1763511838609,0.002,3101.7,3100.9,0.1858]
[1763511839730,0.002,3101.7,3100.9,0.6619]
[1763511840358,0.002,3101.7,3100.5,0.63256566]
[1763511840524,0.4745,3101.6,3100.4,0.1858]
[1763511841132,0.4745,3101.6,3100.5,0.4761]
[1763511841337,0.4745,3101.6,3099.8,0.90699264]
[1763511841540,0.4745,3101.6,3099.6,0.001]
[1763511841791,0.4745,3101.6,3099.9,0.4771]
[1763511842077,0.4745,3101.6,3099.9,0.001]
[1763511842426,0.4745,3101.6,3100.1,0.1822]
[1763511842627,0.4745,3101.6,3100.1,0.21445702]
[1763511842924,0.4745,3101.6,3099.9,0.001]
[1763511842925,0.6491,3100.4,3099.9,0.001]
[1763511843652,1.1236,3100.4,3099.9,0.001]
[1763511844959,0.1908,3100.7,3100.1,0.1822]
[1763511845144,0.1908,3100.9,3100.1,0.1822]
[1763511845349,0.1908,3100.9,3099.9,0.001]
[1763511845542,0.1908,3100.9,3099.9,0.0332591]
[1763511845867,0.1908,3100.9,3099.9,0.406504]
[1763511846738,0.6713,3100.9,3099.9,0.406504]
[1763511847155,0.6713,3100.9,3099.9,0.001]
[1763511847362,0.4805,3100.8,3099.9,0.001]
[1763511847661,0.1908,3100.9,3099.9,0.001]
[1763511848288,0.002,3101.7,3100.8,0.4858]
[1763511848635,0.002,3101.7,3100.5,0.03225286]
[1763511848636,0.4805,3101.6,3100.5,0.405504]
[1763511849063,0.4805,3101.6,3100.5,0.4605]
[1763511849535,0.4805,3101.6,3100.2,0.405504]
[1763511849731,0.4805,3101.6,3100.1,0.4605]
[1763511849929,0.4805,3101.6,3099.9,0.001]
[1763511851860,0.405504,3101.5,3099.9,0.001]
[1763511852360,0.4805,3101.4,3099.9,0.001]
[1763511852893,0.4825,3101.7,3100.3,0.4615]
[1763511853172,0.4805,3101.6,3100.3,0.4615]
[1763511854348,0.4825,3101.6,3100.3,0.4615]
[1763511854541,0.4825,3101.6,3100.3,0.001]
[1763511855552,0.6517,3100.4,3100.3,0.001]
[1763511855871,0.405504,3101.5,3100.3,0.001]
[1763511856047,0.1823,3100.8,3100.3,0.001]
[1763511856579,0.6628,3100.8,3100.3,0.001]
[1763511857443,0.1823,3100.8,3100.3,0.001]
[1763511857673,0.4805,3101.2,3100.3,0.001]
[1763511857888,0.1823,3100.9,3100.3,0.001]
[1763511858114,0.6628,3100.9,3100.3,0.001]
[1763511858623,0.1823,3100.9,3100.3,0.001]
[1763511858793,0.4694,3100.4,3100.3,0.001]
[1763511859121,0.4805,3100.8,3100.3,0.001]
[1763511859896,0.4694,3100.4,3100.3,0.001]
[1763511860399,0.9499,3100.4,3100.3,0.001]
[1763511862722,0.1823,3100.9,3100.3,0.001]
[1763511863607,0.6776,3100.9,3100.3,0.001]
[1763511864223,0.4687,3100.4,3100.3,0.001]
[1763511864745,0.964,3100.4,3100.3,0.001]
[1763511868036,4.19497164,3100.4,3100.3,0.001]
[1763511868254,4.6535578,3100.4,3100.3,0.001]
[1763511868931,2.2904898,3100.4,3100.3,0.001]
[1763511869269,4.36006064,3100.4,3100.3,0.001]
[1763511869562,1.87099264,3100.4,3100.3,0.001]
[1763511869953,2.16737613,3100.4,3100.3,0.001]
[1763511870279,1.87099264,3100.4,3100.3,0.001]
[1763511870564,4.29864264,3100.4,3100.3,0.001]
[1763511870860,4.46111264,3100.4,3100.3,0.001]
[1763511871448,2.3171039,3100.4,3100.3,0.001]
[1763511871625,1.87099264,3100.4,3100.3,0.001]
[1763511872533,1.40229264,3100.3,3099.2,0.3237]
[1763511872760,0.2343,3100.0,3099.2,0.3237]
[1763511873364,0.1978,3099.9,3099.2,0.3237]
[1763511874361,0.6931,3099.9,3099.1,0.194]
[1763511874530,0.6931,3099.9,3098.2,0.405504]
[1763511874531,0.6931,3099.9,3098.7,0.4717]
[1763511874730,0.4953,3100.3,3099.1,0.0509]
[1763511875160,0.4953,3100.3,3099.1,0.5216]
[1763511875738,0.4953,3100.3,3099.1,0.0509]
[1763511879151,2.916264,3100.2,3099.0,0.001]
[1763511879358,0.3411564,3100.1,3099.1,0.0509]
[1763511879554,0.4942,3100.1,3099.1,0.0509]
[1763511880362,0.4942,3100.1,3099.0,0.001]
[1763511882941,0.79026988,3100.4,3099.1,0.5271]
[1763511883164,0.4942,3100.4,3099.1,0.5271]
[1763511883377,0.4942,3100.3,3099.0,0.001]
[1763511883547,0.90699264,3100.1,3099.1,0.0509]
[1763511883874,0.48697576,3100.1,3099.1,0.0509]
[1763511884075,0.4942,3100.0,3099.1,0.0509]
[1763511884446,0.1934,3099.9,3099.1,0.0509]
[1763511884873,0.6876,3099.9,3099.1,0.0509]
[1763511885702,0.4942,3099.8,3099.1,0.0509]
[1763511887654,0.4942,3100.3,3099.2,0.4762]
[1763511887861,0.4942,3100.3,3099.1,0.0509]
[1763511888957,0.4942,3100.3,3099.1,0.5271]
[1763511889161,0.4962,3100.3,3099.1,0.5271]
[1763511890781,0.4962,3100.3,3099.1,0.0509]
[1763511892759,0.4962,3100.3,3099.1,0.5271]
[1763511894254,0.4962,3100.3,3099.1,0.0509]
[1763511894457,0.79257827,3100.3,3099.1,0.0509]
[1763511894683,0.29637827,3100.2,3099.1,0.0509]
[1763511894886,0.4942,3100.2,3099.1,0.0509]
[1763511896189,0.002,3100.3,3099.2,0.03226639]
[1763511896591,0.4962,3100.3,3099.3,0.4762]
[1763511896961,0.4962,3100.3,3099.1,0.0509]
[1763511897156,0.4962,3100.3,3099.2,0.4762]
[1763511897768,0.4962,3100.3,3099.1,0.0509]
[1763511898182,0.79257827,3100.3,3099.1,0.0509]
[1763511898492,0.29637827,3100.2,3099.1,0.0509]
[1763511898654,0.4942,3100.2,3099.1,0.0509]
[1763511898860,0.4942,3100.2,3099.1,0.5271]
[1763511899960,0.002,3100.3,3100.1,0.4573]
[1763511900475,0.002,3100.3,3099.2,0.90699264]
[1763511900476,0.4526,3100.2,3099.2,0.90699264]
[1763511900659,0.4526,3100.2,3099.3,0.95798926]
[1763511901085,0.4526,3100.2,3099.4,0.4762]
[1763511901406,0.9468,3100.2,3099.1,3.9109]
[1763511901705,0.002,3100.3,3100.1,0.6395]
[1763511901997,0.002,3100.3,3099.3,0.405504]
[1763511902418,0.002,3100.3,3099.4,0.4762]
[1763511903039,0.002,3100.3,3100.2,0.4573]
[1763511903888,0.002,3100.3,3100.0,0.1822]
[1763511904088,0.002,3100.3,3100.2,0.4573]
[1763511905109,0.4546,3100.3,3099.1,0.0509]
[1763511905294,0.2487,3100.2,3099.2,0.4762]
[1763511905976,0.4942,3100.1,3099.2,0.4762]
[1763511906593,0.4942,3100.1,3099.1,0.0509]
[1763511907318,0.4942,3100.1,3099.0,0.001]
[1763511907875,0.4942,3100.1,3099.1,0.0509]
[1763511909222,0.002,3100.3,3100.0,0.4651]
[1763511909513,0.002,3100.3,3100.1,0.1822]
[1763511909722,0.002,3100.3,3100.2,0.4651]
[1763511910716,0.002,3100.3,3099.1,0.0509]
[1763511911015,0.002,3100.3,3099.1,0.508]
[1763511911016,0.4989,3100.2,3099.1,0.508]
[1763511911217,0.002,3100.3,3099.1,0.508]
[1763511911606,0.4989,3100.2,3099.1,0.508]
[1763511912726,0.002,3100.3,3099.2,0.03226639]
[1763511912894,0.002,3100.3,3099.1,0.508]
[1763511913584,0.5009,3100.3,3099.1,0.508]
[1763511913785,0.5009,3100.3,3099.1,0.0509]
[1763511914020,0.5009,3100.3,3099.1,0.508]
[1763511914979,0.5009,3100.3,3099.1,0.0509]
[1763511916226,1.40789264,3100.3,3099.0,0.001]
[1763511916426,0.29668109,3100.2,3099.0,0.001]
[1763511916637,0.17045737,3100.1,3099.0,0.001]
[1763511917146,0.4989,3100.0,3099.0,0.001]
[1763511917531,0.1898,3099.9,3099.0,0.001]
[1763511918096,0.4989,3099.8,3099.0,0.001]
[1763511918860,0.4989,3099.8,3099.1,0.0509]
[1763511920402,0.4989,3099.8,3099.0,0.001]
[1763511920403,0.4876,3099.2,3099.0,0.001]
[1763511920597,0.4989,3099.8,3099.0,0.001]
[1763511920598,0.213,3099.1,3099.0,0.001]
[1763511920905,4.01674664,3099.1,3099.0,0.001]
[1763511921107,10.30181098,3099.1,3099.0,0.001]
[1763511921304,1.31249664,3098.8,3098.7,0.001]
[1763511921599,0.42726353,3098.7,3098.4,0.001]
[1763511921831,0.2572,3098.5,3098.4,0.001]
[1763511922277,0.7297,3098.5,3098.4,0.001]
[1763511922481,1.135204,3098.5,3098.4,0.001]
[1763511923565,0.7297,3098.5,3098.4,0.001]
[1763511924114,8.22901275,3098.5,3098.4,0.001]
[1763511924270,9.09464038,3098.5,3098.4,0.001]
[1763511924617,2.50232027,3098.5,3098.4,0.001]
[1763511924910,1.63669264,3098.5,3098.4,0.001]
[1763511927846,0.90699264,3098.5,3098.4,0.001]
[1763511928141,0.42726353,3099.3,3098.4,0.4955]
[1763511928142,0.1911,3099.2,3098.4,0.4955]
[1763511928354,0.4725,3099.8,3098.7,0.4945]
[1763511928841,1.31249664,3099.7,3098.7,0.4945]
[1763511929067,0.002,3100.1,3098.8,0.4581]
[1763511929549,0.4745,3100.1,3098.8,0.4581]
[1763511929840,0.4745,3100.1,3098.8,1.0933603]
[1763511930134,0.4745,3100.1,3098.9,0.4581]
[1763511930632,0.002,3100.1,3098.9,0.4581]
[1763511932162,0.002,3100.1,3100.0,0.5454]
[1763511932340,0.002,3100.1,3100.0,1.0035]
[1763511932507,0.002,3100.1,3100.0,0.5454]
[1763511932850,0.002,3100.1,3100.0,1.0035]
[1763511933240,0.002,3100.1,3100.0,0.5454]
[1763511933641,0.002,3100.1,3100.0,1.0035]
[1763511935181,0.002,3100.1,3099.6,0.4581]
[1763511935479,0.46,3100.1,3099.5,0.0509]
[1763511935775,0.002,3100.1,3099.5,0.509]
[1763511936479,0.002,3100.1,3100.0,0.4675]
[1763511936873,0.002,3100.1,3100.0,0.9588]
[1763511937452,0.002,3100.3,3100.0,0.9588]
[1763511937659,0.002,3100.3,3100.2,0.6497]
[1763511937949,0.002,3100.5,3100.2,0.6497]
[1763511938146,0.002,3100.5,3100.4,0.4675]
[1763511938573,0.002,3100.5,3100.4,0.9588]
[1763511939407,0.002,3100.7,3100.4,0.9588]
[1763511939681,0.002,3100.7,3100.6,0.4675]
[1763511940156,0.002,3100.7,3100.6,0.9588]
[1763511941974,0.002,3100.7,3100.5,0.16209551]
[1763511942174,0.002,3100.7,3100.6,0.4675]
[1763511943901,0.002,3100.7,3100.3,0.4913]
[1763511944104,0.002,3100.7,3100.6,0.4675]
[1763511944879,0.002,3100.7,3100.6,0.9588]
[1763511945087,0.002,3100.7,3100.6,0.4675]
[1763511945405,0.002,3100.7,3100.2,0.81678574]
[1763511945610,0.002,3100.7,3100.6,0.4675]
[1763511947305,0.002,3100.7,3100.2,0.81678574]
[1763511947509,0.002,3100.7,3100.2,1.33369431]
[1763511947711,0.002,3100.7,3100.2,1.19040857]
[1763511949690,0.002,3100.7,3100.2,0.69910857]
[1763511950216,0.002,3100.7,3100.2,1.19040857]
[1763511950587,0.002,3100.7,3100.1,3.86]
[1763511950588,0.4957,3100.3,3100.1,3.86]
[1763511950795,0.4744,3100.6,3100.1,3.86]
[1763511951830,0.4744,3100.6,3100.0,0.001]
[1763511953530,0.4957,3100.1,3100.0,0.001]
[1763511953829,0.4744,3100.6,3100.0,0.001]
[1763511954048,0.002,3100.7,3100.0,0.001]
[1763511954907,0.4764,3100.7,3100.0,0.001]
[1763511956226,0.002,3100.7,3100.0,0.001]
[1763511956427,0.002,3100.7,3100.1,0.4913]
[1763511958312,0.002,3100.7,3100.6,0.4675]
[1763511958514,0.002,3100.7,3100.6,0.9588]
[1763511959631,0.002,3101.0,3100.6,0.9588]
[1763511959827,0.002,3101.0,3100.7,0.9588]
[1763511960127,0.002,3101.0,3100.8,0.405504]
[1763511960314,0.002,3101.6,3101.0,0.4675]
[1763511960517,0.002,3101.6,3100.9,0.896804]
[1763511960518,0.002,3101.6,3101.3,1.059804]
[1763511960716,0.002,3101.9,3101.7,0.4675]
[1763511961025,0.002,3101.9,3101.8,0.873004]
[1763511961226,0.50627527,3103.2,3102.0,0.405504]
[1763511961429,0.50627527,3103.2,3102.0,0.873004]
[1763511961630,0.50627527,3103.2,3102.3,0.405504]
[1763511961800,0.50627527,3103.2,3102.5,0.4675]
[1763511962133,0.50627527,3103.2,3103.1,0.585]
[1763511962830,0.6735,3105.0,3103.2,0.405504]
[1763511962992,0.6735,3105.0,3103.9,0.4675]
[1763511963410,0.1991,3105.0,3104.0,0.4913]
[1763511963733,0.1991,3105.5,3104.2,0.405504]
[1763511963932,0.1991,3105.5,3104.3,0.4913]
[1763511964249,0.1991,3107.0,3104.4,0.405504]
[1763511964250,0.4744,3106.1,3104.4,0.405504]
[1763511964550,0.4744,3105.9,3104.4,0.83276753]
[1763511964748,0.4744,3105.9,3104.5,0.4913]
[1763511965150,0.4744,3105.9,3104.6,0.405504]
[1763511965520,0.4744,3105.9,3104.3,0.405504]
[1763511966031,0.4744,3105.9,3104.1,0.1175]
[1763511966344,0.405504,3105.8,3104.1,0.1175]
[1763511966756,0.473,3105.7,3104.2,0.4636]
[1763511966978,0.473,3105.7,3104.1,0.1175]
[1763511967115,0.473,3105.7,3104.2,0.4636]
[1763511968214,0.473,3105.7,3104.1,0.1175]
[1763511969470,0.473,3105.7,3104.2,0.4636]
[1763511969951,0.473,3105.7,3103.7,0.4744]
[1763511969952,5.558802,3105.6,3103.7,0.4744]
[1763511970120,0.6729,3104.3,3103.2,0.4636]
[1763511970315,0.6729,3104.3,3103.1,0.1175]
[1763511970519,0.473,3104.2,3103.1,0.1175]
[1763511970764,0.473,3104.2,3103.2,0.4636]
[1763511971096,0.473,3104.2,3102.5,0.4636]
[1763511972388,0.1802,3104.3,3102.7,0.405504]
[1763511972554,0.473,3104.4,3102.6,0.405504]
[1763511972750,0.473,3104.4,3102.7,0.4636]
[1763511973150,0.1938,3104.7,3102.7,0.4636]
[1763511973354,0.1938,3104.7,3102.8,0.405504]
[1763511973589,0.1938,3104.7,3103.0,0.405504]
[1763511973793,0.1938,3104.7,3103.2,0.405504]
[1763511973794,0.6668,3104.7,3103.2,0.405504]
[1763511974087,0.473,3104.6,3103.3,0.4636]
[1763511976498,0.1938,3105.0,3103.3,0.4636]
[1763511976711,0.1938,3104.8,3103.3,0.4636]
[1763511976862,0.473,3104.7,3103.3,0.4636]
[1763511978417,0.1938,3104.8,3103.3,0.4636]
[1763511978418,0.1938,3104.8,3103.4,0.405504]
[1763511978622,0.6668,3104.8,3103.4,0.405504]
[1763511978918,0.6668,3104.8,3103.3,0.4636]
[1763511979109,0.473,3104.7,3103.3,0.4636]
[1763511980520,0.473,3104.7,3103.1,0.001]
[1763511980521,0.6805,3103.4,3103.1,0.001]
[1763511980725,0.202,3103.2,3103.1,0.001]
[1763511981220,1.31249664,3103.1,3102.8,0.001]
[1763511981404,1.31249664,3103.1,3102.5,0.001]
[1763511981405,0.405504,3102.8,3102.5,0.001]
[1763511981589,0.614604,3102.6,3102.5,0.001]
[1763511982019,0.7006,3102.6,3102.5,0.001]
[1763511982395,1.106104,3102.6,3102.5,0.001]
[1763511982711,0.7006,3102.6,3102.5,0.001]
[1763511985919,0.9453,3102.6,3102.5,0.001]
[1763511988407,0.4538,3102.6,3102.5,0.001]
[1763511988615,0.4915,3102.9,3102.5,0.001]
[1763511988952,0.4915,3103.2,3102.5,0.001]
[1763511989574,0.4915,3103.6,3102.5,0.001]
[1763511989741,6.31465171,3104.5,3102.5,0.001]
[1763511990045,0.4915,3103.5,3102.5,0.001]
[1763511991356,0.1938,3104.8,3103.3,0.1537]
[1763511991661,0.4915,3104.2,3103.3,0.1537]
[1763511992715,0.6853,3104.0,3103.0,0.1537]
[1763511993758,0.4915,3103.9,3103.0,0.1537]
[1763511994076,0.4915,3103.9,3102.6,0.4697]
[1763511994367,0.4915,3103.9,3102.5,0.001]
[1763511994962,0.1938,3104.0,3102.5,0.001]
[1763511995268,0.4915,3103.9,3102.5,0.001]
[1763511996629,0.405504,3103.7,3102.5,0.001]
[1763511996831,0.8558382,3103.6,3102.5,0.001]
[1763511997026,0.4954,3103.5,3102.5,0.001]
[1763511997949,0.1947,3102.6,3102.5,0.001]
[1763511998131,0.6668,3102.6,3102.5,0.001]
[1763511998334,1.1622,3102.6,3102.5,0.001]
[1763511998530,0.1947,3102.8,3102.5,0.001]
[1763511998758,0.4721,3102.6,3102.5,0.001]
[1763511999078,0.6901,3102.8,3102.5,0.001]
[1763511999275,0.1947,3102.8,3102.5,0.001]
[1763511999473,0.4954,3102.7,3102.5,0.001]
[1763511999770,0.4721,3102.6,3102.5,0.001]
[1763512000187,0.8456204,3104.4,3102.5,0.4639]
[1763512000336,0.4954,3103.5,3102.5,0.001]
[1763512003373,0.29568583,3103.9,3102.6,0.4903]
[1763512003582,0.4954,3104.2,3102.6,0.4903]
[1763512003878,0.50785226,3104.7,3102.6,0.4903]
[1763512003879,0.6912,3104.0,3102.6,0.4903]
[1763512004246,0.4954,3103.9,3102.6,0.4903]
[1763512004688,0.4954,3103.9,3102.5,0.001]
[1763512004889,0.4954,3103.9,3102.5,0.4913]
[1763512006256,0.79141314,3103.9,3102.5,0.001]
[1763512006659,0.900904,3103.8,3102.5,0.001]
[1763512006891,0.405504,3103.6,3102.5,0.001]
[1763512007459,0.900904,3103.6,3102.5,0.001]
[1763512007877,0.4954,3103.7,3102.5,0.001]
[1763512008083,1.19702636,3103.9,3102.5,0.001]
[1763512008362,0.4759554,3103.8,3102.5,0.001]
[1763512008562,0.9713554,3103.8,3102.5,0.001]
[1763512008789,0.29625401,3103.7,3102.5,0.001]
[1763512008992,0.4954,3103.7,3102.6,0.4903]
[1763512009294,0.6912,3104.0,3102.6,0.4903]
[1763512009456,0.29645618,3103.9,3102.6,1.39729264]
[1763512009662,0.6912,3104.0,3102.7,1.01612926]
[1763512010167,0.29669086,3103.9,3102.7,1.01612926]
[1763512010576,0.29669086,3103.9,3102.8,0.4903]
[1763512010995,0.1958,3104.0,3102.8,0.4903]
[1763512011588,0.6912,3104.0,3102.8,0.4903]
[1763512011799,0.1958,3104.0,3102.8,0.4903]
[1763512011977,0.002,3104.0,3102.8,0.4903]
[1763512012772,0.1947,3103.9,3102.8,0.4903]
[1763512013096,0.002,3103.8,3102.5,0.001]
[1763512013298,0.002,3103.8,3102.7,0.4903]
[1763512013464,0.4954,3103.7,3102.7,0.4903]
[1763512013659,0.4954,3103.7,3102.5,0.4913]
[1763512013961,0.4954,3103.7,3102.5,0.001]
[1763512015178,0.002,3103.8,3102.5,0.4913]
[1763512015693,0.4974,3103.8,3102.5,0.4913]
[1763512016661,0.002,3103.8,3102.5,0.4913]
[1763512017475,0.4954,3103.7,3102.5,0.4913]
[1763512017686,0.4954,3103.7,3102.5,0.001]
[1763512018177,0.4954,3103.7,3102.5,0.4913]
[1763512018578,0.4954,3103.7,3102.5,0.001]
[1763512018780,0.29902896,3103.8,3102.6,0.4903]
[1763512019117,0.4954,3103.7,3102.6,0.4903]
[1763512019399,0.002,3103.8,3102.6,0.4903]
[1763512019601,0.4954,3103.7,3102.6,0.4903]
[1763512020996,0.002,3103.8,3102.6,0.4903]
[1763512021175,0.4954,3103.6,3102.5,0.001]
[1763512021600,0.6668,3102.6,3102.5,0.001]
[1763512022088,1.1622,3102.6,3102.5,0.001]
[1763512022490,0.1947,3102.9,3102.5,0.001]
[1763512022692,0.900904,3103.4,3102.5,0.001]
[1763512022895,0.29731481,3103.3,3102.5,0.001]